Cogmind - Beta 15 @@@ ROGUE MODE // 2025.06.14 @ 17:01:56 Player: the Result: Destroyed by Shrapnel Trap Performance ------------- Evolutions (0) 0 Regions Visited (2) 400 Robots Destroyed (59) 295 Value Destroyed (1556) 1556 Prototype IDs (2) 40 Alien Tech Used (0) 0 Bonus (0) 0 TOTAL SCORE: 2291 Bonus ------- None Cogmind --------- Core Integrity 0/250 Matter 247/300 Energy 199/200 System Corruption 0% Temperature Cool (0) Movement Rolling (145) Ox3 Location -10/Subcaves Parts ------- > --- POWER (1) -------- Subdweller Power Source > --- PROPULSION (2) --- Compact Wheel > --- UTILITY (2) ------ High-capacity Storage Unit > --- WEAPON (2) ------- EM Shotgun EM Shotgun > --- INVENTORY (20) --- Arachnoskeleton Cooling System Cooling System Cooling System Cooling System Medium Battery (150) High-capacity Matter Pod (0) Structural Scanner Hardened Light Armor Plating Hardened Light Armor Plating Scrap Shield EM Shotgun Subdweller Beam Cannon Dirty Datajack (20) Multitool Makeshift Hammer Peak State ------------ > --- POWER ------------ Subdweller Power Source > --- PROPULSION ------- Wheel Compact Wheel > --- UTILITY ---------- High-capacity Storage Unit Makeshift Light Armor Plating > --- WEAPON ----------- Subdweller Shrapnel Launcher Makeshift Hammer > --- INVENTORY -------- Subdweller Power Source Arachnoskeleton Cooling System Cooling System Cooling System Cooling System Medium Battery High-capacity Matter Pod Structural Scanner Hardened Light Armor Plating Hardened Light Armor Plating Scrap Shield EM Shotgun EM Shotgun EM Shotgun EM Shotgun Battle Cannon [Rating: 20] Favorites ----------- Power Subdweller Power Source Engine Subdweller Power Source Power Core Light Nuclear Core Propulsion Wheel Treads Light Treads Wheel Wheel Utility High-capacity Storage Unit Device Seismic Detector Storage High-capacity Storage Unit Protection Makeshift Light Armor Plating Weapon Heavy EM Pulse Gun Energy Gun Heavy EM Pulse Gun Ballistic Gun Light Assault Rifle Ballistic Cannon Battle Cannon Launcher Subdweller Shrapnel Launcher Special Weapon Mining Laser Impact Weapon Makeshift Hammer Build | -11 -10 -10 ------- Run | Yrd Mat Sub Slots Evolved . | . . . Power . | . . . Propulsion . | . . . Utility . | . . . Weapon . | . . . Parts Attached 48 | 7 25 16 Power 8 | 1 3 4 Engine 7 | 1 2 4 Core 1 | . 1 . Reactor . | . . . Propulsion 12 | 2 9 1 Treads 2 | 2 . . Leg . | . . . Wheel 10 | . 9 1 Hover . | . . . Flight . | . . . Utility 10 | 2 6 2 Device 4 | 1 3 . Storage 2 | 1 1 . Processor . | . . . Hackware . | . . . Protection 4 | . 2 2 Artifact . | . . . Weapon 18 | 2 7 9 Energy Gun 8 | . 5 3 Energy Cannon . | . . . Ballistic Gun 2 | 2 . . Ballistic Cannon 1 | . . 1 Launcher 3 | . . 3 Special Weapon 3 | . 2 1 Impact Weapon 1 | . . 1 Slashing Weapon . | . . . Piercing Weapon . | . . . Special Melee Weapon . | . . . Unidentified Prototypes . | . . . Parts Lost 14 | . 4 10 Power 2 | . 1 1 Propulsion 4 | . 1 3 Utility 4 | . 2 2 Weapon 4 | . . 4 Highest Loss Streak 2 | . 1 2 To Critical Strikes . | . . . Average Backups 16 | 5 15 17 Power . | . . . Propulsion 2 | 1 3 1 Utility 8 | . 7 9 Weapon 4 | 2 4 4 Tool/Special . | . . . Unused Backups 21 | 2 4 15 Power 1 | . . 1 Propulsion 2 | . . 2 Utility 12 | . 3 9 Weapon 5 | 2 1 2 Tool/Special 1 | . . 1 Average Slot Usage (%) 97 | . 98 96 Engine 10 | . 4 13 Core 2 | . 9 . Treads 1 | . 3 . Wheel 25 | . 23 26 Device 2 | . 8 . Storage 14 | . 14 14 Protection 10 | . 4 13 Energy Gun 9 | . 12 7 Ballistic Gun 2 | . 7 . Ballistic Cannon 2 | . . 3 Launcher 8 | . . 11 Special Weapon 2 | . 8 . Impact Weapon 2 | . . 4 Peak Build Rating 20 | 7 14 20 Average Rating 14 | 5 11 16 On Entrance 6 | . 7 13 Naked Turns . | . . . Heaviest Build 61 | 12 54 61 Greatest Support 40 | 40 40 26 Greatest Overweight (x) 5 | . 5 3 Average Overweight (x) 1 | . 1 2 Largest Inventory Capacity 20 | 8 20 20 Average Capacity 19 | 7 18 20 Most Carried 20 | 8 20 20 Average Carried 18 | 5 15 19 Final Capacity 20 | 8 20 20 Final Carried 20 | 6 20 19 Class Distribution -------------------- 94% | Mutant 5% | Scavenger-Mutant Dominant Class ---------------- Mutant | -10/Materials Mutant | -10/Subcaves Resources | -11 -10 -10 ----------- Run | Yrd Mat Sub Matter Collected 2082 | 346 589 1147 Remotely . | . . . Salvage Created 1567 | 157 751 659 Parts 107 | 15 50 42 Haulers Intercepted 1 | . 1 . Recyclers Shooed . | . . . Parts Field Recycled . | . . . Retrieved Matter . | . . . Parts Self-Destructed 14 | . . 14 Prevented . | . . . Kills | -11 -10 -10 ------- Run | Yrd Mat Sub Combat Hostiles Destroyed 42 | . 13 29 Melee 1 | . . 1 Guns 18 | . 11 7 Cannons 1 | . . 1 AOE 22 | . 2 20 Classes Destroyed 12 | 2 7 3 Worker 3 | . 3 . Builder 2 | . 2 . Tunneler 6 | 4 2 . Hauler 1 | . 1 . Recycler 1 | 1 . . Operator 1 | . 1 . Turret 2 | . . 2 Watcher 1 | . 1 . Swarmer 10 | . 2 8 Grunt 11 | . 11 . Sentry 1 | . . 1 Subdweller 20 | . . 20 Best Kill Streak 5 | 2 5 3 Combat Bots Only 3 | . 2 3 Max Kills in Single Turn 3 | 1 2 3 Gunslinging 1 | . 1 . Exploded 3 | . 1 3 Melee 1 | . . 1 Uniques/NPCs Destroyed . | . . . Combat | -11 -10 -10 -------- Run | Yrd Mat Sub Hostile Shots Fired 138 | . 67 71 Missed 42 | . 22 20 Hits 96 | . 45 51 Projectile 96 | . 45 51 AOE 4 | . . 4 Critical Strikes 4 | . . 4 Damage Taken 1955 | . 571 1384 Core 256 | . 73 183 Absorbed by Shields . | . . . Redirected to Shielding 2 | . 2 . Core Remaining (%) 100 | 100 . . Volleys Fired 227 | 19 114 94 Largest 2 | 2 2 2 Hottest 100 | 40 100 100 Shots Fired 297 | 38 153 106 Gun 178 | 38 108 32 Cannon 15 | . . 15 Launcher 52 | . . 52 Special 52 | . 45 7 Kinetic 113 | 38 32 43 Thermal 52 | . 45 7 Explosive 24 | . . 24 Electromagnetic 108 | . 76 32 Robot Hit Streak 14 | 8 14 13 Robot Miss Streak 5 | 1 5 2 Penetration Max . | . . . Secondary Targets 2 | . 2 . Max Gunslinging Chain 1 | . 1 . Shots Hit Robots 155 | 28 69 58 Core Hits 98 | 11 32 55 Critical Kills . | . . . Critical Parts Destroyed . | . . . Critical Strikes 2 | . 1 1 Corrupt 2 | . 1 1 Melee Attacks 2 | . . 2 Impact 2 | . . 2 Slashing . | . . . Piercing . | . . . Sneak Attacks . | . . . Combat Hostiles . | . . . Follow-up Attacks . | . . . Damage Inflicted 4421 | 297 1221 2903 Guns 1566 | 297 970 299 Cannons 232 | . . 232 Explosions 2536 | . 203 2333 Melee 39 | . . 39 Ramming . | . . . Kinetic 2047 | 297 224 1526 Thermal 251 | . 251 . Explosive 1039 | . . 1039 Electromagnetic 1045 | . 746 299 Impact 39 | . . 39 Slashing . | . . . Piercing . | . . . Highest Corruption . | . . . Average Corruption . | . . . Corruption Purged . | . . . Corruption Blocked . | . . . Overload Shots . | . . . Overflow Damage 32 | . 7 25 Projectiles . | . . . Explosions 32 | . 7 25 Melee . | . . . Knockbacks 6 | . . 6 Impact . | . . . Kinetic 6 | . . 6 Secondary . | . . . Self-Inflicted Damage 253 | . 46 207 Shots 8 | . 1 7 Rammed . | . . . Targets Rammed . | . . . Kicked . | . . . Crushed . | . . . Highest Temperature 270 | . 270 254 Average Temperature 63 | . 62 81 Received Heat Transfer 664 | . 237 427 Effects 1 | . 1 . Energy Bleed 1 | . 1 . Siege Activations . | . . . Martial Activations . | . . . Shielding Activations . | . . . Robots Disrupted . | . . . Combat Hostiles . | . . . Robots Corrupted . | . . . Combat Hostiles . | . . . Parts Fried 6 | . 3 3 Impact Corruptions . | . . . Robots Melted . | . . . Combat Hostiles . | . . . Parts Melted . | . . . Heat Transferred 400 | . 400 . Parts Sabotaged . | . . . Parts Stolen . | . . . Parts Stripped . | . . . Power Chain Reactions 4 | . 4 . Alert | -11 -10 -10 ------- Run | Yrd Mat Sub Maximum Alert Level . | . . . Low Security (%) 100 | 100 100 . Level 1 . | . . . Level 2 . | . . . Level 3 . | . . . Level 4 . | . . . Level 5 . | . . . High Security . | . . . Max Security . | . . . Peak Influence 172 | 5 172 . Initial . | . . . Average 58 | . 65 . Influence Increases 874 | 25 579 270 Destroy 0b10 Robot/C 480 | . 260 220 Destroy 0b10 Robot/NC 75 | 25 50 . Destroy Leader 94 | . 74 20 Successful Hack 39 | . 39 . Disable Machine 45 | . 45 . Destroy Structure 51 | . 51 . Lose Combat Pursuer 90 | . 60 30 Influence Decreases 768 | 25 416 327 Entered New Map 79 | . . 79 Time Decay 605 | 25 376 204 Lost Part 84 | . 40 44 Squads Dispatched 2 | . 2 . Investigation 1 | . 1 . Extermination . | . . . Reinforcement 1 | . 1 . Assault . | . . . Garrison . | . . . Intercept . | . . . Searches Triggered . | . . . Construction Impeded . | . . . Haulers Reinforced . | . . . Active Scanning Responses . | . . . Cargo Convoy Interrupts . | . . . Stealth | -11 -10 -10 --------- Run | Yrd Mat Sub Distress Signals 1 | . 1 . Communications Jammed . | . . . Distress Signals . | . . . Times Spotted 53 | . 26 27 Peak Tracking Total 6 | . 4 6 Tactical Retreats 4 | . 3 1 Traps | -11 -10 -10 ------- Run | Yrd Mat Sub Traps Triggered 4 | . 1 3 Indirectly . | . . . Trap Hack Attempts . | . . . Triggered . | . . . Disarmed . | . . . Reprogrammed . | . . . Reused 1 | . . 1 Traps Extracted . | . . . Installed 2 | . . 2 Triggered 1 | . . 1 Most Traps Carried 2 | . . 2 Machines | -11 -10 -10 ---------- Run | Yrd Mat Sub Machines Disabled 6 | . 3 3 Max in Single Turn 2 | . 1 2 Machines Repaired . | . . . Machines Dismantled . | . . . Machines Sabotaged . | . . . Overloaded Fab Kills . | . . . Hacking | -11 -10 -10 --------- Run | Yrd Mat Sub Machines Accessed 10 | . 7 3 Terminals 7 | . 7 . Fabricators . | . . . Repair Stations . | . . . Recycling Units . | . . . Scanalyzers . | . . . Garrison Access . | . . . Total Hacks 29 | . 23 6 Successful 20 | . 14 6 Failed 9 | . 9 . Catastrophic . | . . . Database Lockouts . | . . . Manual 15 | . 15 . Terminals 23 | . 23 . Fabricators . | . . . Repair Stations . | . . . Recycling Units . | . . . Scanalyzers . | . . . Garrison Access . | . . . Terminal Hacks 14 | . 8 6 Record 5 | . . 5 Robot Analysis 1 | . 1 . Prototype ID Bank 1 | . 1 . Open Door 1 | . . 1 Terminal Index 1 | . 1 . Patrol Status 1 | . 1 . Registered Components 1 | . 1 . Zone Layout 3 | . 3 . Fabricator Hacks . | . . . Repair Station Hacks . | . . . Recycling Unit Hacks . | . . . Scanalyzer . | . . . Garrison Access Hacks . | . . . Unauthorized Hacks 6 | . 6 . Terminals 6 | . 6 . Assimilate 1 | . 1 . Botnet 4 | . 4 . Operators 1 | . 1 . Fabricators . | . . . Repair Stations . | . . . Recycling Units . | . . . Scanalyzers . | . . . Garrison Access . | . . . Data Cores Recovered . | . . . Used . | . . . Hacking Detections 6 | . 6 . Full Trace Events . | . . . Feedback Events . | . . . Feedback Blocked . | . . . Robot Schematics Acquired . | . . . Robots Built . | . . . Authchips . | . . . Time . | . . . Total Robot Build Rating . | . . . Part Schematics Acquired . | . . . Parts Built . | . . . Authchips . | . . . Time . | . . . Total Part Build Rating . | . . . Parts Repaired . | . . . Time . | . . . Parts Recycled . | . . . Recycled Matter . | . . . Retrieved Matter . | . . . Retrieved Components . | . . . Parts Scanalyzed . | . . . Part Schematics Acquired . | . . . Parts Damaged . | . . . Bothacking | -11 -10 -10 ------------ Run | Yrd Mat Sub Used RIF Installer . | . . . Robots Hacked . | . . . Non-combat . | . . . Combat . | . . . Robot Hacks Applied . | . . . Relay Couplers Released . | . . . Fabnet Peak Effective % . | . . . Robots Rewired . | . . . Allies Hacked . | . . . Hacks Repelled . | . . . Allies | -11 -10 -10 -------- Run | Yrd Mat Sub Total Allies . | . . . Largest Group . | . . . Highest-Rated Group . | . . . Highest-Rated Ally . | . . . Total Orders . | . . . Ally Attacks . | . . . Total Damage . | . . . Kills . | . . . Allies Corrupted . | . . . Allies Melted . | . . . Intel | -11 -10 -10 ------- Run | Yrd Mat Sub Active Infowar (turns) 956 | 22 934 . Seismic 956 | 22 934 . Robot Analysis Total 1 | . 1 . Derelict Logs Recovered . | . . . Drone Launches . | . . . Drone Recoveries . | . . . Exploration | -11 -10 -10 ------------- Run | Yrd Mat Sub Turns Passed 5355 | 198 1570 3587 Spaces Moved 3404 | 81 938 2385 Core 3 | 3 . . Treads 172 | 78 94 . Legs . | . . . Wheels 3229 | . 844 2385 Hover . | . . . Flight . | . . . Fastest Speed 50 | 50 105 105 Average Speed 120 | 155 115 121 Slowest Speed 160 | 160 160 145 Overloaded Moves . | . . . Propulsion Burnouts . | . . . Robots Hopped . | . . . Potential Cave-ins 2 | . . 2 Cave-ins Triggered . | . . . Exploration Rate (%) 66 | 6 98 94 Regions Visited 2 Branch Regions 1 Pre-discovered Areas 1 | . . 1 Known Exits Taken . | . . . Unknown Exits Taken 2 | 1 1 . Scrap Searched 11 | . . 11 Spaces Dug 102 | . 27 75 Terrain Destroyed 508 | . 56 452 Melee . | . . . Projectile 43 | . 43 . AOE 465 | . 13 452 Terrain Rammed . | . . . Walls Destroyed . | . . . Machines Disabled . | . . . Actions | -11 -10 -10 --------- Run | Yrd Mat Sub Total 4251 | 116 1184 2951 Wait 456 | . 48 408 Move 3402 | 80 937 2385 Hop . | . . . Pick Up 49 | 8 29 12 Fast Attach 11 | 7 2 2 Attach 14 | . 5 9 Detach 1 | . . 1 Swap 49 | . 28 21 Drop 38 | 2 21 15 Fire 227 | 19 114 94 Melee 2 | . . 2 Ram . | . . . Kick . | . . . Crush . | . . . Escape Stasis . | . . . Rewire . | . . . Trap 2 | . . 2 Miscellaneous . | . . . Route ------- -11/Scrapyard -10/Materials (discovered 5 exits: [*Mat x3] / [*Min] / *Sub) -10/Subcaves (discovered 3 exits: [*Mat x2] / [*Rec]) History --------- Turn | Location | Event 2 | -11/Scrapyard | Met Revision 17 43 | -11/Scrapyard | Discovered new exit (range 15) 199 | -11/Scrapyard | Entered Materials 314 | -10/Materials | Build established: Mutant 394 | -10/Materials | Discovered new exit (range 15) 657 | -10/Materials | Discovered new exit (range 11) 986 | -10/Materials | Discovered new exit (range 16) 1373 | -10/Materials | Discovered new exit (range 7) 1759 | -10/Materials | Discovered new exit (range 9) 1769 | -10/Materials | Entered Subcaves 1770 | -10/Subcaves | Approached by a straggling Scientist 1771 | -10/Subcaves | A swath of the cavern ceiling suddenly collapsed 1779 | -10/Subcaves | Learned location of Zion (-7) 1779 | -10/Subcaves | Met a Zionite searching for "candidates" 1820 | -10/Subcaves | Discovered new exit (range 15) 1847 | -10/Subcaves | Disturbed a concealed Subdweller 2101 | -10/Subcaves | A Subdweller sparked back to life 2158 | -10/Subcaves | Found Prototype Leg 2265 | -10/Subcaves | Shifting Twisted Machinery released Shrapnel Trap 2269 | -10/Subcaves | Shifting Twisted Machinery released Sub. Power Source 2855 | -10/Subcaves | Curiously followed by a Cobbler waking with a query about "LVR3C" 3641 | -10/Subcaves | Discovered new exit (range 5) 3642 | -10/Subcaves | Shifting Twisted Machinery released Piercing Trap 3724 | -10/Subcaves | Shifting Twisted Machinery released Scrap Shield 4120 | -10/Subcaves | Ambushed by Subdweller buried in earth 4227 | -10/Subcaves | Disturbed a concealed Subdweller 4716 | -10/Subcaves | Discovered new exit (range 13) 4747 | -10/Subcaves | A swath of the cavern ceiling suddenly collapsed 4930 | -10/Subcaves | Core integrity fell below 50% 5084 | -10/Subcaves | Visited Clippyterm 5088 | -10/Subcaves | Learned Factory fabricator intel 5178 | -10/Subcaves | Shifting Twisted Machinery released Scrap Shield 5219 | -10/Subcaves | Shifting Twisted Machinery released Piercing Trap 5343 | -10/Subcaves | Core integrity fell below 20% 5356 | -10/Subcaves | Destroyed by Shrapnel Trap Last Messages --------------- 05182_ Critical hit (Impale). Piercing Trap falls loose from the Twisted Machinery. 05236_ S-10 Pest destroyed. 05242_ Dropped Hcp. Matter Pod. 05243_ Extracted 200 matter. 05243_ Acquired Hcp. Matter Pod. 05243_ Sub. Shrapnel Launcher destroyed. 05245_ S-10 Pest destroyed. 05248_ Lgt. Assault Rifle fries itself beyond repair. 05307_ Mak. Light Armor Plating destroyed. 05310_ V5-5WN(R) destroyed. 05314_ Acquired 51 matter. 05342_ Triggered Piercing Trap. 05342_ Spikes shoot up from the floor. 05342_ Critical hit (Impale). 05356_ Triggered Shrapnel Trap. 05356_ An expanding cloud of shrapnel blasts out in all directions. Map ----- +----------------------------------------------------+ | ?#### #???????###?## #??????????????? | | ????## ##???????????# ##??????????????? | | ?????####????????????## ##??????????????? | | ??????????????????????## ##?????????????? | | ???????????????????????# #?????????????? | | ???????????????????????### #?????????????? | | ?????????????????????????## #?????????????? | | ????????????????????????#####?????????????? | | ????????????????????????# ##??????????????? | | ????????????????????????# #######????????? | | ???????????????????????## # #????????? | | ?????????????????????### #" #????????? | | ?????????????????????#" #????????? | | ?????????????????????#" #????????? | | ?????????????????????#" #????????? | | ?????????????????????##" ##????????? | | ??????????????????????## #?????????? | | ??????###????#####????## ##?????????? | | ??????#" #### ###### #??????????? | | ??????#"" " "& #*# "###??????????? | | ???? """"" & ! ####????????????? | | ??????# """" """"" ###???????????????? | | ???????## ""## "#"""# ##?###?????????????? | | ????????##"""## """"###?## #?????????????? | | ?????????#"""#" #" ##### #?????????????? | | ????##? ###""#; ; ;; @ #?????????????? | | ????# """ #; O #?????????????? | | ????" """"#;; ##?????????????? | | ????""" ! """; ;## #??????????????? | | ??# " " "#" "#### #??????????????? | | ??# """ "##??###??????????????? | | ????# " ; ^ ""#????????????????????? | | ???"""# "###????????????????????? | | ??????# ######??????????????????? | | ?###??## # # & ### ##?????????????????? | | ##"#???## ## &* ## ####??????????????? | | "#"#????## #?# &[## ##?????????????? | | #"##?????##??# ## #?????????????? | | "##????????### #?????????????? | | " ########## #?????????????? | | """##"""## #?????????????? | | ""###"" ## ##?????????????? | | ###?#"X ####??????????????? | | ????#"" ## ## #?????????????????? | | ????#"""### #### ###???????????????? | | ????#####?## #??#### ##??????????????? | | ???????????# ##?????## #??????????????? | | ???????????## ##??????## ##??????????????? | | ???????????# #???????###???????????????? | | ???????????## #?????????????????????????? | +----------------------------------------------------+ Best States ------------- Heat Dissipation 47 Energy Generation 15 Energy Capacity 200 Matter Stores 300 Matter Capacity 300 Sight Range 16 Terrain Scan Density 10 Armor Coverage 150 Weapon Shielding 33 Evasion (%) 40 Recoil Reduction 2 Item Schematics ----------------- None Robot Schematics ------------------ None Fabricated ------------ Nothing Repaired ---------- Nothing Alien Tech Used ----------------- None Achievements -------------- None Challenges ------------ None Game ------ Seed HellfireNeutronBank Manual? 0 Play Time 00:49:05 Cumulative 152.3 hours Start 2025.06.13 @ 22:45:11 End 2025.06.14 @ 17:01:56 Sessions 3 Manual Loads 0 Difficulty Rogue Special Mode None Game No. 105 Rogue 105 Adventurer 0 Explorer 0 Win Type - Total 1 Types 1/0/0/0/0/0/0/0/0/0 Lore% 50 Gallery% 52 Achievement% 47 Wizard Run 0 Options --------- Layout 1 ASCII 0 Keyboard 0 Movement Mouse Keybinds 0 Fullscreen 1 Font 24/Smallcaps Map View 50x35 Zoom Use 0% Tactical HUD 1 Map Filters NONE Filters NONE Steam 1 RUN: 1d23224a-f434-4f23-8af2-c7ce415d18ce